bitfinex/quotes_BTCUSD_20250223
["timestamp","ask_amount","ask_price","bid_price","bid_amount"]
[1740298963917,0.02221336,96540.0,96539.0,0.15812089]
[1740298964337,0.3297,96552.0,96551.0,0.155358]
[1740298964545,0.45458042,96552.0,96551.0,0.155358]
[1740298965507,0.45958042,96552.0,96551.0,0.155358]
[1740298965903,0.46258042,96552.0,96551.0,0.155358]
[1740298967131,0.45958042,96552.0,96551.0,0.155358]
[1740298967333,0.45458042,96552.0,96551.0,0.155358]
[1740298967535,0.45658042,96552.0,96551.0,0.155358]
[1740298967762,0.45958042,96552.0,96551.0,0.155358]
[1740298967995,0.45958042,96552.0,96549.0,0.207147]
[1740298968200,0.10264569,96551.0,96549.0,0.15536]
[1740298968387,0.10264569,96551.0,96550.0,0.155359]
[1740298969858,0.10364569,96551.0,96550.0,0.155359]
[1740298971348,0.10364569,96551.0,96549.0,0.155361]
[1740298971577,0.10664569,96551.0,96550.0,0.155359]
[1740298972133,0.10364569,96551.0,96550.0,0.155359]
[1740298972344,0.10364569,96551.0,96549.0,0.155361]
[1740298972585,0.10664569,96551.0,96549.0,0.155361]
[1740298972775,0.10664569,96551.0,96550.0,0.155359]
[1740298972962,0.10364569,96551.0,96550.0,0.155359]
[1740298973545,0.10264569,96551.0,96550.0,0.155359]
[1740298973810,0.10364569,96551.0,96550.0,0.155359]
[1740298974290,0.10664569,96551.0,96550.0,0.155359]
[1740298974838,0.10664569,96551.0,96542.0,0.207161]
[1740298975058,0.10564569,96551.0,96548.0,0.155362]
[1740298975307,0.10664569,96551.0,96548.0,0.155362]
[1740298975711,0.10564569,96551.0,96548.0,0.155362]
[1740298975951,0.10664569,96551.0,96548.0,0.155362]
[1740298976308,0.10264569,96551.0,96548.0,0.155362]
[1740298976667,0.10264569,96551.0,96540.0,0.207167]
[1740298976901,0.10419882,96551.0,96540.0,0.207167]
[1740298977073,0.10419882,96551.0,96546.0,0.155364]
[1740298977288,0.10364569,96551.0,96539.0,0.00174389]
[1740298977631,0.10664569,96551.0,96539.0,0.00174389]
[1740298978036,0.10364569,96551.0,96539.0,0.00174389]
[1740298978238,0.10364569,96551.0,96541.0,0.207165]
[1740298978461,0.00155313,96550.0,96539.0,0.00174389]
[1740298978810,0.10264569,96549.0,96539.0,0.00174389]
[1740298978996,0.00155313,96548.0,96539.0,0.00174389]
[1740298979306,0.10264569,96547.0,96539.0,0.00174389]
[1740298979557,0.10264569,96547.0,96540.0,0.155376]
[1740298979794,0.08255313,96546.0,96539.0,0.00174389]
[1740298980001,0.10264569,96545.0,96539.0,0.00174389]
[1740298980215,0.00155313,96544.0,96539.0,0.00174389]
[1740298980378,0.10264569,96543.0,96539.0,0.15712089]
[1740298980662,0.10264569,96543.0,96542.0,0.155372]
[1740298980907,0.10264569,96543.0,96539.0,0.00174389]
[1740298981396,0.10264569,96543.0,96542.0,0.155372]
[1740298981867,0.43234569,96543.0,96542.0,0.155372]
[1740298982338,0.45457981,96543.0,96540.0,0.155375]
[1740298982575,0.45457981,96543.0,96541.0,0.155372]
[1740298982808,0.45457981,96543.0,96542.0,0.155372]
[1740298983040,0.45457981,96543.0,96542.0,0.001]
[1740298983268,0.45457981,96543.0,96542.0,0.155372]
[1740298983497,0.45782108,96543.0,96539.0,0.00174389]
[1740298983730,0.45782108,96543.0,96540.0,0.001]
[1740298984701,0.10419882,96542.0,96540.0,0.001]
[1740298984937,0.155376,96540.0,96539.0,0.00174389]
[1740298985132,0.10419882,96540.0,96539.0,0.00174389]
[1740298985367,0.12642963,96540.0,96539.0,0.00174389]
[1740298985621,0.1248765,96540.0,96539.0,0.00174389]
[1740298985884,0.12642963,96540.0,96539.0,0.00174389]
[1740298986078,0.13700619,96540.0,96539.0,0.00174389]
[1740298986533,0.14024746,96540.0,96539.0,0.00174389]
[1740298986767,0.1296709,96540.0,96539.0,0.00174389]
[1740298987209,0.1316709,96540.0,96539.0,0.00174389]
[1740298987834,0.47151617,96540.0,96539.0,0.00174389]
[1740298988065,0.46996304,96540.0,96539.0,0.00174389]
[1740298988484,0.45981777,96540.0,96539.0,0.00174389]
[1740298989947,0.47029976,96540.0,96539.0,0.00174389]
[1740298990888,0.45981777,96540.0,96539.0,0.00174389]
[1740298993002,0.6884525,96540.0,96539.0,0.00174389]
[1740299021852,0.6119525,96540.0,96539.0,0.00174389]
[1740299032562,0.4565765,96540.0,96539.0,0.00174389]
[1740299034727,0.6119525,96540.0,96539.0,0.00174389]
[1740299036751,0.6151944,96540.0,96539.0,0.00174389]
[1740299036968,0.6151944,96540.0,96539.0,0.01174389]
[1740299038497,0.6119525,96540.0,96539.0,0.01174389]
[1740299042669,0.4565765,96540.0,96539.0,0.01174389]
[1740299042858,0.6119525,96540.0,96539.0,0.01174389]
[1740299043103,0.4565765,96540.0,96539.0,0.01174389]
[1740299048357,0.4598184,96540.0,96539.0,0.01174389]
[1740299049449,0.6151944,96540.0,96539.0,0.01174389]
[1740299051201,0.6151944,96540.0,96534.0,0.0017012]
[1740299051395,0.10264569,96535.0,96534.0,0.00178615]
[1740299051802,0.1248757,96535.0,96534.0,0.00178615]
[1740299052934,0.1248757,96535.0,96534.0,0.00278615]
[1740299053141,0.1281176,96535.0,96534.0,0.00278615]
[1740299056131,0.4578176,96535.0,96534.0,0.00278615]
[1740299056983,0.4643014,96535.0,96534.0,0.00278615]
[1740299060774,0.4578176,96535.0,96534.0,0.00278615]
[1740299063835,0.47467548,96535.0,96534.0,0.00278615]
[1740299064910,0.4643014,96535.0,96534.0,0.00278615]
[1740299066259,0.4643014,96535.0,96534.0,0.00178615]
[1740299066502,0.4643014,96535.0,96534.0,0.00278615]
[1740299070474,0.4578176,96535.0,96534.0,0.00278615]
[1740299073474,0.77339821,96535.0,96534.0,0.00278615]
[1740299074355,0.155388,96532.0,96531.0,0.0001956]
[1740299074585,0.155388,96532.0,96531.0,0.00023871]
[1740299074586,0.58928682,96532.0,96531.0,0.00023871]
[1740299074796,0.60995725,96532.0,96531.0,0.00023871]
[1740299075762,0.68725725,96532.0,96531.0,0.00023871]
[1740299075959,0.69125725,96532.0,96531.0,0.00023871]
[1740299076166,0.69725725,96532.0,96531.0,0.00123871]
[1740299076349,0.70049915,96532.0,96531.0,0.00123871]
[1740299081543,0.71504,96532.0,96531.0,0.00123871]
[1740299084578,0.90113661,96532.0,96531.0,0.00123871]
[1740299085270,0.89513661,96532.0,96531.0,0.00023871]
[1740299085451,0.89513661,96532.0,96531.0,0.00108911]
[1740299085847,0.89113661,96532.0,96531.0,0.00108911]
[1740299086077,0.89613661,96532.0,96531.0,0.00108911]
[1740299086474,0.86004,96532.0,96531.0,0.00108911]
[1740299087147,0.86604,96532.0,96531.0,0.00108911]
[1740299087566,0.86004,96532.0,96531.0,0.00108911]
[1740299088038,0.86704,96532.0,96531.0,0.00108911]
[1740299088435,0.8567981,96532.0,96531.0,0.00108911]
[1740299088661,0.8587981,96532.0,96531.0,0.00108911]
[1740299088871,0.8647981,96532.0,96531.0,0.00108911]
[1740299094186,0.8647981,96532.0,96531.0,0.00120911]
[1740299096387,0.90089471,96532.0,96531.0,0.00120911]
[1740299096889,0.90089471,96532.0,96531.0,1.1e-07]
[1740299097131,0.155413,96517.0,96516.0,0.0017008]
[1740299097344,0.25805869,96517.0,96516.0,0.0017008]
[1740299097547,0.2802044,96517.0,96516.0,0.0017008]
[1740299098436,0.2862044,96517.0,96516.0,0.0017008]
[1740299098658,0.63044525,96517.0,96516.0,0.0017008]
[1740299099110,0.63344525,96517.0,96516.0,0.0017008]
[1740299099373,0.62444525,96517.0,96516.0,0.0017008]
[1740299099822,0.62844525,96517.0,96516.0,0.0017008]
[1740299100742,0.63444525,96517.0,96516.0,0.0017008]
[1740299101220,0.62844525,96517.0,96516.0,0.0017008]
[1740299101659,0.63544525,96517.0,96516.0,0.0017008]
[1740299101913,0.78544525,96517.0,96516.0,0.0017008]
[1740299112087,0.7709044,96517.0,96516.0,0.0017008]
[1740299116259,0.8521044,96517.0,96516.0,0.0017008]
[1740299118835,0.86664525,96517.0,96516.0,0.0017008]
[1740299119240,0.95004185,96517.0,96516.0,0.0017008]
[1740299120807,0.94304185,96517.0,96516.0,0.0017008]
[1740299121783,0.93904185,96517.0,96516.0,0.0017008]
[1740299122013,0.94604185,96517.0,96516.0,0.0017008]
[1740299122215,0.81754185,96517.0,96516.0,0.0017008]
[1740299122444,0.78144525,96517.0,96516.0,0.0017008]
[1740299122597,0.78844525,96517.0,96516.0,0.0017008]
[1740299122796,0.86934525,96517.0,96516.0,0.0017008]
[1740299122993,0.86234525,96517.0,96516.0,0.0017008]
[1740299123605,0.86934525,96517.0,96516.0,0.0017008]
[1740299124220,0.95324185,96517.0,96516.0,0.0017008]
[1740299125942,0.94700185,96517.0,96516.0,0.0017008]
[1740299126086,0.95400185,96517.0,96516.0,0.0017008]
[1740299126288,0.96100185,96517.0,96516.0,0.0017008]
[1740299128288,0.92490525,96517.0,96516.0,0.0017008]
[1740299142514,0.91714525,96517.0,96516.0,0.0017008]
[1740299143911,0.86934525,96517.0,96516.0,0.0017008]
[1740299147617,0.78844525,96517.0,96516.0,0.0017008]
[1740299164408,0.78844525,96517.0,96516.0,0.4381008]
[1740299178969,0.7739044,96517.0,96516.0,0.4381008]
[1740299180428,0.7599044,96517.0,96516.0,0.4381008]
[1740299180640,0.7649044,96517.0,96516.0,0.4381008]
[1740299180994,0.7719044,96517.0,96516.0,0.4381008]
[1740299181406,0.7649044,96517.0,96516.0,0.4381008]
[1740299181806,0.7719044,96517.0,96516.0,0.4381008]
[1740299195857,0.78644525,96517.0,96516.0,0.4381008]
[1740299226479,0.78144525,96517.0,96516.0,0.4381008]
[1740299226774,0.78044525,96517.0,96516.0,0.4381008]
[1740299227425,0.78744525,96517.0,96516.0,0.4381008]
[1740299227879,0.79068848,96517.0,96516.0,0.4381008]
[1740299229018,0.79768848,96517.0,96516.0,0.4381008]
[1740299230384,0.79068848,96517.0,96516.0,0.4381008]
[1740299230629,0.79768848,96517.0,96516.0,0.4381008]
[1740299231647,0.79444525,96517.0,96516.0,0.4381008]
[1740299234399,0.83054185,96517.0,96516.0,0.4381008]
[1740299235133,0.81054185,96517.0,96516.0,0.4381008]
[1740299235333,0.78144525,96517.0,96516.0,0.4381008]
[1740299235532,0.78844525,96517.0,96516.0,0.4381008]
[1740299236322,0.78144525,96517.0,96516.0,0.4381008]
[1740299236532,0.78844525,96517.0,96516.0,0.4381008]
[1740299237127,0.78144525,96517.0,96516.0,0.4381008]
[1740299237711,0.78844525,96517.0,96516.0,0.4381008]
[1740299237848,0.78144525,96517.0,96516.0,0.4381008]
[1740299238249,0.78844525,96517.0,96516.0,0.4381008]
[1740299239099,0.79168887,96517.0,96516.0,0.4381008]
[1740299243347,0.78844525,96517.0,96516.0,0.4381008]
[1740299247607,0.8812596,96517.0,96516.0,0.4381008]
[1740299251522,0.78844525,96517.0,96516.0,0.4381008]
[1740299255973,0.79168888,96517.0,96516.0,0.4381008]
[1740299256374,0.82778548,96517.0,96516.0,0.4381008]
[1740299265625,0.82454185,96517.0,96516.0,0.4381008]
[1740299270698,0.81754185,96517.0,96516.0,0.4381008]
[1740299271106,0.82454185,96517.0,96516.0,0.4381008]
[1740299271461,0.81754185,96517.0,96516.0,0.4381008]
[1740299271681,0.78844525,96517.0,96516.0,0.4381008]
[1740299272376,0.78144525,96517.0,96516.0,0.4381008]
[1740299273225,0.78844525,96517.0,96516.0,0.4381008]
[1740299277485,0.76629954,96517.0,96516.0,0.4381008]
[1740299277689,0.78831504,96517.0,96516.0,0.4381008]
[1740299278965,0.89761504,96517.0,96516.0,0.4381008]
[1740299279165,0.78831504,96517.0,96516.0,0.4381008]
[1740299286295,0.7915587,96517.0,96516.0,0.4381008]
[1740299286672,0.7695432,96517.0,96516.0,0.4381008]
[1740299287049,0.79156192,96517.0,96516.0,0.4381008]
[1740299287227,0.7695432,96517.0,96516.0,0.4381008]
[1740299287423,0.79156192,96517.0,96516.0,0.4381008]
[1740299297822,0.78831826,96517.0,96516.0,0.4381008]
[1740299308809,0.79607826,96517.0,96516.0,0.4381008]
[1740299314898,0.88900036,96517.0,96516.0,0.4381008]
[1740299324602,0.79607826,96517.0,96516.0,0.4381008]
[1740299334815,0.79932169,96517.0,96516.0,0.4381008]
[1740299345677,0.80580862,96517.0,96516.0,0.4381008]
[1740299345994,0.80580862,96517.0,96516.0,0.40566614]
[1740299347344,0.79932169,96517.0,96516.0,0.40566614]
[1740299350943,0.79932169,96517.0,96516.0,0.40651644]
[1740299357698,0.79932169,96517.0,96516.0,0.37408177]
[1740299359572,0.79607826,96517.0,96516.0,0.37408177]
[1740299362445,0.79777906,96517.0,96516.0,0.37408177]
[1740299364463,0.80426583,96517.0,96516.0,0.37408177]
[1740299377042,0.79650583,96517.0,96516.0,0.37408177]
[1740299382046,0.79001906,96517.0,96516.0,0.37408177]
[1740299385688,0.77547821,96517.0,96516.0,0.37408177]
[1740299387419,0.79001906,96517.0,96516.0,0.37408177]
[1740299393853,0.8829469,96517.0,96516.0,0.37408177]
[1740299397508,0.8689469,96517.0,96516.0,0.37408177]
[1740299397721,0.88243341,96517.0,96516.0,0.37408177]
[1740299397959,0.79650557,96517.0,96516.0,0.37408177]
[1740299400227,0.79001906,96517.0,96516.0,0.37408177]
[1740299414445,0.79650518,96517.0,96516.0,0.37408177]
[1740299416339,0.79650518,96517.0,96516.0,0.27047177]
[1740299419492,0.79001906,96517.0,96516.0,0.27047177]
[1740299428223,0.39556185,96512.0,96511.0,0.0004]
[1740299428427,0.49820754,96512.0,96511.0,0.0004]
[1740299428629,0.52018939,96512.0,96511.0,0.0004]
[1740299429672,0.52618939,96512.0,96511.0,0.0004]
[1740299430476,0.53318939,96512.0,96511.0,0.0004]
[1740299432940,0.53318939,96512.0,96511.0,0.0012504]
[1740299433368,0.86288939,96512.0,96511.0,0.0012504]
[1740299439100,0.78728939,96512.0,96511.0,0.0012504]
[1740299439304,0.82338598,96512.0,96511.0,0.0012504]
[1740299439561,0.16454085,96511.0,96500.0,0.04967021]
[1740299439771,0.40808369,96501.0,96500.0,0.04967021]
[1740299439921,0.42262454,96501.0,96500.0,0.04967021]
[1740299440118,0.44459241,96501.0,96500.0,0.04967021]
[1740299441087,0.44463539,96501.0,96500.0,0.04967021]
[1740299441431,0.45063539,96501.0,96500.0,0.04967021]
[1740299441635,0.45363539,96501.0,96500.0,0.04967021]
[1740299442054,0.46012244,96501.0,96500.0,0.04967021]
[1740299442698,0.47032291,96501.0,96500.0,0.04967021]
[1740299445255,0.80002291,96501.0,96500.0,0.04967021]
[1740299445609,0.80002291,96501.0,96500.0,0.05052061]
[1740299450968,0.79353586,96501.0,96500.0,0.05052061]
[1740299455153,0.80002291,96501.0,96500.0,0.05052061]
[1740299455580,0.80521255,96501.0,96500.0,0.0271672]
[1740299457229,0.8104022,96501.0,96500.0,0.0271672]
[1740299459744,0.80002291,96501.0,96500.0,0.0271672]
[1740299462389,0.79353586,96501.0,96500.0,0.0271672]
[1740299466794,0.155448,96495.0,96491.0,0.00552386]
[1740299466941,0.60233454,96495.0,96491.0,0.0042804]
[1740299467446,0.62430452,96495.0,96491.0,0.0042804]
[1740299468272,0.62530452,96495.0,96491.0,0.0042804]
[1740299469263,0.62517544,96495.0,96491.0,0.0042804]
[1740299469466,0.62817544,96495.0,96491.0,0.0042804]
[1740299474960,0.47285652,96495.0,96491.0,0.0042804]
[1740299475133,0.62830452,96495.0,96491.0,0.0042804]
[1740299475351,0.47285652,96495.0,96491.0,0.0042804]
[1740299475553,0.62830452,96495.0,96491.0,0.0042804]
[1740299478802,0.47285652,96495.0,96491.0,0.0042804]
[1740299478999,0.62830452,96495.0,96491.0,0.0042804]
[1740299479281,0.47285652,96495.0,96491.0,0.0042804]
[1740299480318,0.62830452,96495.0,96491.0,0.0042804]
[1740299480512,0.62830452,96495.0,96491.0,0.0055239]
[1740299480714,0.62830452,96495.0,96491.0,0.0042804]
[1740299481197,0.52467452,96495.0,96491.0,0.0042804]
[1740299481357,0.36922652,96495.0,96491.0,0.0042804]
[1740299484548,0.36922652,96495.0,96491.0,0.0055239]
[1740299484549,0.37092772,96495.0,96491.0,0.0055239]
[1740299487520,0.37092772,96495.0,96492.0,0.0012435]
[1740299497163,0.37092772,96495.0,96494.0,0.0029445]
[1740299498148,0.34895774,96495.0,96494.0,0.0029445]
[1740299498325,0.37104891,96495.0,96494.0,0.1583945]
[1740299498705,0.37104891,96495.0,96494.0,0.0029445]
[1740299500842,0.37104891,96495.0,96494.0,0.001701]
[1740299503578,0.36704891,96495.0,96494.0,0.001701]
[1740299503992,0.36804891,96495.0,96494.0,0.001701]
[1740299504315,0.36704891,96495.0,96494.0,0.001701]
[1740299504723,0.37004891,96495.0,96494.0,0.001701]
[1740299504933,0.37004891,96495.0,96494.0,0.00294443]
[1740299505105,0.37004891,96495.0,96494.0,0.001701]
[1740299505314,0.36704891,96495.0,96494.0,0.001701]
[1740299505513,0.36704891,96495.0,96494.0,0.00294443]
[1740299505694,0.36904891,96495.0,96494.0,0.00294443]
[1740299505915,0.36904891,96495.0,96494.0,0.001701]
[1740299519885,0.36900891,96495.0,96494.0,0.001701]
[1740299528149,0.36900891,96495.0,96494.0,0.157151]
[1740299528354,0.36900891,96495.0,96494.0,0.15839444]
[1740299536478,0.26636322,96495.0,96494.0,0.15839444]
[1740299537296,0.02579237,96495.0,96494.0,0.15839444]
[1740299537499,0.02579237,96495.0,96494.0,0.15833858]
[1740299537725,0.0037012,96495.0,96494.0,0.15833858]
[1740299561915,0.0037012,96495.0,96494.0,0.15709514]
[1740299562135,0.10634689,96495.0,96494.0,0.00164514]
[1740299562310,0.12891488,96495.0,96494.0,0.00164514]
[1740299562921,0.28436288,96495.0,96494.0,0.00164514]
[1740299563127,0.12891488,96495.0,96494.0,0.00164514]
[1740299564138,0.28436288,96495.0,96494.0,0.00164514]
[1740299564970,0.36576288,96495.0,96494.0,0.00164514]
[1740299565961,0.21031488,96495.0,96494.0,0.00164514]
[1740299566388,0.36576288,96495.0,96494.0,0.00164514]
[1740299566945,0.45088573,96495.0,96494.0,0.00164514]
[1740299576287,0.36948573,96495.0,96494.0,0.00164514]
[1740299580627,0.36944573,96495.0,96494.0,0.00164514]
[1740299586815,0.36944573,96495.0,96494.0,0.15709514]
[1740299587900,0.34687774,96495.0,96494.0,0.15709514]
[1740299588111,0.34687774,96495.0,96494.0,0.15833862]
[1740299588280,0.36943707,96495.0,96494.0,0.15833862]
[1740299589647,0.36943707,96495.0,96494.0,0.15709514]
[1740299593026,0.36943707,96495.0,96494.0,0.15833859]
[1740299595068,0.36943707,96495.0,96494.0,0.15483959]
[1740299598899,0.36943707,96495.0,96494.0,0.16521226]
[1740299599280,0.36943707,96495.0,96494.0,0.16606266]
[1740299606958,0.26679138,96495.0,96494.0,0.16606266]
[1740299607686,0.26479138,96495.0,96494.0,0.16606266]
[1740299608721,0.02422053,96495.0,96494.0,0.16606266]
[1740299609121,0.0016612,96495.0,96494.0,0.16606266]
[1740299630342,0.0016612,96495.0,96494.0,0.15568999]
[1740299630752,0.0016612,96495.0,96494.0,0.16591636]
[1740299631595,0.0016612,96495.0,96494.0,0.15568999]
[1740299632735,0.0016612,96495.0,96494.0,0.16597458]
[1740299641642,0.0016212,96495.0,96494.0,0.16597458]
[1740299659396,0.0016212,96495.0,96494.0,0.15568999]
[1740299659606,0.0016212,96495.0,96494.0,0.15444654]
[1740299661827,0.10426689,96495.0,96494.0,0.0008504]
[1740299662218,0.48953932,96495.0,96494.0,0.0008504]
[1740299669992,0.50408017,96495.0,96494.0,0.0008504]
[1740299678224,0.65952817,96495.0,96494.0,0.0008504]
[1740299678370,0.50408017,96495.0,96494.0,0.0008504]
[1740299678805,0.65952817,96495.0,96494.0,0.0008504]
[1740299678975,0.66052817,96495.0,96494.0,0.0008504]
[1740299679997,0.50508017,96495.0,96494.0,0.0008504]
[1740299681635,0.66052817,96495.0,96494.0,0.0008504]
[1740299682091,0.50508017,96495.0,96494.0,0.0008504]
[1740299682298,0.66052817,96495.0,96494.0,0.0008504]
[1740299682928,0.50508017,96495.0,96494.0,0.0008504]
[1740299683104,0.66052817,96495.0,96494.0,0.0008504]
[1740299684051,0.65952817,96495.0,96494.0,0.0008504]
[1740299684380,0.66352817,96495.0,96494.0,0.0008504]
[1740299684594,0.66452817,96495.0,96494.0,0.0008504]
[1740299684956,0.66052817,96495.0,96494.0,0.0008504]
[1740299685112,0.66352817,96495.0,96494.0,0.0008504]
[1740299688690,0.66136579,96495.0,96494.0,0.0008504]
[1740299689559,0.65836579,96495.0,96494.0,0.0008504]
[1740299689765,0.66236579,96495.0,96494.0,0.0008504]
[1740299690207,0.66406659,96495.0,96494.0,0.0008504]
[1740299690414,0.65906659,96495.0,96494.0,0.0008504]
[1740299690585,0.66306659,96495.0,96494.0,0.0008504]
[1740299692388,0.66955331,96495.0,96494.0,0.0008504]
[1740299692949,0.67155331,96495.0,96494.0,0.0008504]
[1740299694384,0.82155331,96495.0,96494.0,0.0008504]
[1740299702530,0.82151331,96495.0,96494.0,0.0008504]
[1740299702953,0.83189213,96495.0,96494.0,0.0008504]
[1740299708533,0.82151331,96495.0,96494.0,0.0008504]
[1740299712412,0.81502659,96495.0,96494.0,0.0008504]
[1740299722231,0.53747859,96495.0,96494.0,0.0008504]
[1740299724051,0.53747859,96495.0,96494.0,0.1563004]
[1740299724255,0.53747859,96495.0,96494.0,0.0008504]
[1740299724706,0.53747859,96495.0,96494.0,0.1563004]
[1740299725106,0.37293774,96495.0,96494.0,0.1563004]
[1740299731609,0.37093774,96495.0,96494.0,0.1563004]
[1740299732122,0.36793774,96495.0,96494.0,0.1563004]
[1740299733359,0.37093774,96495.0,96494.0,0.1563004]
[1740299735017,0.36793774,96495.0,96494.0,0.1563004]
[1740299735405,0.36693774,96495.0,96494.0,0.1563004]
[1740299736451,0.36893774,96495.0,96494.0,0.1563004]
[1740299739934,0.36693774,96495.0,96494.0,0.1563004]
[1740299740159,0.36793774,96495.0,96494.0,0.1563004]
[1740299747395,0.36693774,96495.0,96494.0,0.1563004]
[1740299747973,0.36793774,96495.0,96494.0,0.1563004]
[1740299763067,0.12732689,96495.0,96494.0,0.1563004]
[1740299763271,0.10472531,96495.0,96494.0,0.1563004]
[1740299818742,0.12733303,96495.0,96494.0,0.1563004]
[1740299824051,0.12729303,96495.0,96494.0,0.1563004]
[1740299837140,0.10468531,96495.0,96494.0,0.1563004]
[1740299884794,0.10464531,96495.0,96494.0,0.1563004]
[1740299896593,0.10464531,96495.0,96494.0,0.17713318]
[1740299908582,0.10464531,96495.0,96494.0,0.1563004]
[1740299911109,0.0027008,96495.0,96494.0,0.1563004]
[1740299911311,0.0027008,96495.0,96494.0,0.15754393]
[1740299912289,0.0017008,96495.0,96494.0,0.15754393]
[1740299916024,0.00163572,96495.0,96494.0,0.15754393]
[1740299920215,0.00163572,96495.0,96494.0,0.1563004]
[1740299920460,0.00163572,96495.0,96494.0,0.15754383]
[1740299926444,0.00163572,96495.0,96494.0,0.23604383]
[1740299926639,0.00163572,96495.0,96494.0,0.2348004]
[1740299928431,0.00163572,96495.0,96494.0,0.2578004]
[1740299928432,7.2e-07,96495.0,96494.0,0.2578004]
[1740299928647,7.2e-07,96495.0,96494.0,0.28716459]
[1740299929023,7.2e-07,96495.0,96494.0,0.29116459]
[1740299929165,7.2e-07,96495.0,96494.0,0.28716459]
[1740299929621,7.2e-07,96495.0,96494.0,0.29116459]
[1740299929825,0.00174398,96501.0,96496.0,0.02]
[1740299930043,0.00174398,96501.0,96500.0,0.25394]
[1740299930044,9.8e-07,96501.0,96500.0,0.25394]
[1740299930342,9.8e-07,96501.0,96500.0,0.35270419]
[1740299931310,9.8e-07,96501.0,96500.0,0.47034]
[1740299931565,9.8e-07,96501.0,96500.0,0.47334]
[1740299931974,9.8e-07,96501.0,96500.0,0.481491]
[1740299932180,9.8e-07,96501.0,96500.0,0.484491]
[1740299939826,9.8e-07,96501.0,96500.0,0.50488603]
[1740299940031,0.00170138,96501.0,96500.0,0.50488603]
[1740299942878,0.00170138,96501.0,96500.0,0.35998603]
[1740299943080,0.00170138,96501.0,96500.0,0.33544]
[1740299943302,0.00170138,96501.0,96500.0,0.31544]
[1740299943480,0.00170138,96501.0,96500.0,0.16544]
[1740299943968,0.08420138,96501.0,96500.0,0.16544]
[1740299945629,0.08416138,96501.0,96500.0,0.16544]
[1740299946322,0.08416138,96501.0,96500.0,0.15844]
[1740299946522,0.08416138,96501.0,96500.0,0.16444]
[1740299946800,0.08416138,96501.0,96500.0,0.16144]
[1740299947182,0.08516138,96501.0,96500.0,0.16644]
[1740299949969,0.08416138,96501.0,96500.0,0.15544]
[1740299950249,0.08416138,96501.0,96500.0,0.16544]
[1740299950702,0.18680707,96501.0,96500.0,0.005]
[1740299950874,0.18680707,96501.0,96500.0,0.16044]
[1740299951107,0.19725631,96501.0,96500.0,0.16444]
[1740299951712,0.19725631,96501.0,96500.0,0.1602901]
[1740299952606,0.19725631,96501.0,96500.0,0.1622901]
[1740299953513,0.19725631,96501.0,96500.0,0.1642901]
[1740299968071,0.21179716,96501.0,96500.0,0.0088501]
[1740299968704,0.21828286,96501.0,96500.0,0.0088501]
[1740299971153,0.21179716,96501.0,96500.0,0.0088501]
[1740299972557,0.21179716,96501.0,96500.0,0.0068501]
[1740299972974,0.21179716,96501.0,96500.0,0.0018501]
[1740299973180,0.21179716,96501.0,96500.0,0.0038501]
[1740299973398,0.21179716,96501.0,96500.0,0.0028501]
[1740299973615,0.21179716,96501.0,96500.0,0.0008501]
[1740299973988,0.21179716,96501.0,96500.0,0.0018501]
[1740299974808,0.21179716,96501.0,96500.0,0.0028501]
[1740299975801,0.20802809,96501.0,96500.0,0.0028501]
[1740299976564,0.20972849,96501.0,96500.0,0.0028501]
[1740299981920,0.36516649,96501.0,96500.0,0.0028501]
[1740299983478,0.20972849,96501.0,96500.0,0.0028501]
[1740299984098,0.36516649,96501.0,96500.0,0.0028501]
[1740299984296,0.20972849,96501.0,96500.0,0.0028501]
[1740299984503,0.21621422,96501.0,96500.0,0.0028501]
[1740299986042,0.45029934,96501.0,96500.0,0.0028501]
[1740299990719,0.36990703,96501.0,96500.0,0.1582901]
[1740299990944,0.36990703,96501.0,96500.0,0.0028501]
[1740299991295,0.36990703,96501.0,96500.0,0.1582901]
[1740299992034,0.36990703,96501.0,96500.0,0.0028501]
[1740300000612,0.52534503,96501.0,96500.0,0.0028501]
[1740300000768,0.36990703,96501.0,96500.0,0.0028501]
[1740300000969,0.52534503,96501.0,96500.0,0.0028501]
[1740300001177,0.60264503,96501.0,96500.0,0.0028501]
[1740300001805,0.64984503,96501.0,96500.0,0.0028501]
[1740300002002,0.64984503,96501.0,96500.0,0.0018501]
[1740300002529,0.64984503,96501.0,96500.0,0.0008501]
[1740300005340,0.65633121,96501.0,96500.0,0.0008501]
[1740300005761,0.65833121,96501.0,96500.0,0.0008501]
[1740300006422,0.65829121,96501.0,96500.0,0.0008501]
[1740300009965,0.65180503,96501.0,96500.0,0.0008501]
[1740300019343,0.65170286,96501.0,96500.0,0.0008501]
[1740300023391,0.49626486,96501.0,96500.0,0.0008501]
[1740300023531,0.65170286,96501.0,96500.0,0.0008501]
[1740300024101,0.49626486,96501.0,96500.0,0.0008501]
[1740300025168,0.65170286,96501.0,96500.0,0.0008501]
[1740300025609,0.49626486,96501.0,96500.0,0.0008501]
[1740300033070,0.37176486,96501.0,96500.0,0.0008501]
[1740300037668,0.37176486,96501.0,96500.0,0.1562901]
[1740300038075,0.36131562,96501.0,96500.0,0.1562901]
[1740300038462,0.37163848,96501.0,96500.0,0.1562901]
[1740300039091,0.35709763,96501.0,96500.0,0.1562901]
[1740300040699,0.35609763,96501.0,96500.0,0.1562901]
[1740300041769,0.35509763,96501.0,96500.0,0.1562901]
[1740300042262,0.35609763,96501.0,96500.0,0.1562901]
[1740300042696,0.35509763,96501.0,96500.0,0.1572901]
[1740300042990,0.35509763,96501.0,96500.0,0.1582901]
[1740300048499,0.11452678,96501.0,96500.0,0.1582901]
[1740300048999,0.10420392,96501.0,96500.0,0.1582901]
[1740300060592,0.10420392,96501.0,96500.0,0.17770938]
[1740300062516,0.0017004,96501.0,96500.0,0.17770938]
[1740300063573,0.0017004,96501.0,96500.0,0.1582901]
[1740300067206,0.0016604,96501.0,96500.0,0.1582901]
[1740300085004,0.0016604,96501.0,96500.0,0.1572901]
[1740300085353,0.0016604,96501.0,96500.0,0.1612901]
[1740300085955,0.0016604,96501.0,96500.0,0.1602901]
[1740300086223,0.0016604,96501.0,96500.0,0.1632901]
[1740300087201,0.0016604,96501.0,96500.0,0.16453349]
[1740300088270,0.0016604,96501.0,96500.0,0.21203349]
[1740300088471,0.0016604,96501.0,96500.0,0.2107901]
[1740300102917,0.0016604,96501.0,96500.0,0.1632901]
[1740300103280,0.0016604,96501.0,96500.0,0.16453341]
[1740300107726,0.0016604,96501.0,96500.0,0.1632901]
[1740300110303,0.0016604,96501.0,96500.0,0.16453341]
[1740300111186,0.0016604,96501.0,96500.0,0.1632901]
[1740300112983,0.10430609,96501.0,96500.0,0.1632901]
[1740300113191,0.25558276,96501.0,96500.0,0.1632901]
[1740300113422,0.25558276,96501.0,96500.0,0.0078501]
[1740300113630,0.25558276,96501.0,96500.0,0.1632901]
[1740300113991,0.25558276,96501.0,96500.0,0.1602901]
[1740300114211,0.25558276,96501.0,96500.0,0.1562901]
[1740300114388,0.24524694,96501.0,96500.0,0.1612901]
[1740300114803,0.25558276,96501.0,96500.0,0.1612901]
[1740300119408,0.25558276,96501.0,96500.0,0.0058501]